[Event "Titled Tuesday Blitz January 25 2022"]
[White "Harshavardhan G B"]
[Black "Odegov, Artem"]
[WhiteFideId "25059009"]
[BlackFideId "34183644"]
[WhiteElo "1831"]
[BlackElo "2277"]
[Result "1/2-1/2"]
[Round "03"]
[TimeControl "180+1"]
[Date "2022.01.26"]
[WhiteClock "0:00:34"]
[BlackClock "0:00:18"]

1. d4 {[%clk 0:02:55]}  Nf6 {[%clk 0:02:59]} 2. c4 {[%clk 0:02:54]}  c5 {[%clk 0:02:59]} 3. d5 {[%clk 0:02:54]}  e6 {[%clk 0:03:00]} 4. Nc3 {[%clk 0:02:54]}  exd5 {[%clk 0:03:00]} 5. cxd5 {[%clk 0:02:55]}  g6 {[%clk 0:03:01]} 6. e4 {[%clk 0:02:55]}  d6 {[%clk 0:03:01]} 7. Nge2 {[%clk 0:02:55]}  Bg7 {[%clk 0:03:01]} 8. Ng3 {[%clk 0:02:52]}  O-O {[%clk 0:03:01]} 9. Be2 {[%clk 0:02:52]}  Re8 {[%clk 0:03:02]} 10. O-O {[%clk 0:02:52]}  h5 {[%clk 0:03:02]} 11. Bg5 {[%clk 0:02:51]}  Nbd7 {[%clk 0:03:02]} 12. f4 {[%clk 0:02:50]}  a6 {[%clk 0:03:01]} 13. a4 {[%clk 0:02:48]}  Qb6 {[%clk 0:03:00]} 14. Qd2 {[%clk 0:02:44]}  Nh7 {[%clk 0:03:00]} 15. Bh4 {[%clk 0:02:44]}  Ndf6 {[%clk 0:02:52]} 16. Kh1 {[%clk 0:02:40]}  Bg4 {[%clk 0:02:50]} 17. Rae1 {[%clk 0:02:25]}  Qb4 {[%clk 0:02:36]} 18. Bxf6 {[%clk 0:02:13]}  Nxf6 {[%clk 0:02:34]} 19. e5 {[%clk 0:02:11]}  dxe5 {[%clk 0:02:29]} 20. f5 {[%clk 0:02:10]}  Qd4 {[%clk 0:02:17]} 21. Qc2 {[%clk 0:02:04]}  Bxe2 {[%clk 0:02:12]} 22. Ngxe2 {[%clk 0:02:02]}  Qg4 {[%clk 0:02:03]} 23. fxg6 {[%clk 0:02:02]}  Qxg6 {[%clk 0:02:04]} 24. Qb3 {[%clk 0:02:00]}  b5 {[%clk 0:01:58]} 25. axb5 {[%clk 0:01:45]}  axb5 {[%clk 0:01:59]} 26. Qxb5 {[%clk 0:01:45]}  Rab8 {[%clk 0:01:47]} 27. Qxc5 {[%clk 0:01:44]}  Rxb2 {[%clk 0:01:46]} 28. Qe3 {[%clk 0:01:35]}  e4 {[%clk 0:01:32]} 29. Qg3 {[%clk 0:01:26]}  Ng4 {[%clk 0:01:26]} 30. h3 {[%clk 0:01:15]}  Be5 {[%clk 0:01:24]} 31. Qh4 {[%clk 0:01:11]}  Ne3 {[%clk 0:01:21]} 32. Rg1 {[%clk 0:01:01]}  Bxc3 {[%clk 0:01:09]} 33. Nxc3 {[%clk 0:01:01]}  Nf5 {[%clk 0:01:09]} 34. Qf4 {[%clk 0:00:57]}  Ng3+ {[%clk 0:01:01]} 35. Kh2 {[%clk 0:00:57]}  h4 {[%clk 0:01:01]} 36. Qxh4 {[%clk 0:00:55]}  Nf5 {[%clk 0:00:59]} 37. Qg4 {[%clk 0:00:54]}  e3 {[%clk 0:00:56]} 38. Rgf1 {[%clk 0:00:50]}  Qxg4 {[%clk 0:00:49]} 39. hxg4 {[%clk 0:00:50]}  Nd6 {[%clk 0:00:49]} 40. Rf3 {[%clk 0:00:44]}  Nc4 {[%clk 0:00:49]} 41. Rf4 {[%clk 0:00:42]}  Nd6 {[%clk 0:00:48]} 42. Nd1 {[%clk 0:00:40]}  Rb3 {[%clk 0:00:42]} 43. Rf3 {[%clk 0:00:37]}  Nc4 {[%clk 0:00:40]} 44. Kg3 {[%clk 0:00:36]}  Ra3 {[%clk 0:00:33]} 45. Re2 {[%clk 0:00:35]}  Re5 {[%clk 0:00:24]} 46. Kf4 {[%clk 0:00:33]}  Rxd5 {[%clk 0:00:22]} 47. Nxe3 {[%clk 0:00:32]}  Rd4+ {[%clk 0:00:20]} 48. Kg3 {[%clk 0:00:30]}  Nxe3 {[%clk 0:00:15]} 49. Rexe3 {[%clk 0:00:30]}  Rxe3 {[%clk 0:00:16]} 50. Rxe3 {[%clk 0:00:31]}  Kg7 {[%clk 0:00:17]} 51. Rf3 {[%clk 0:00:31]}  Kg6 {[%clk 0:00:17]} 52. Rf4 {[%clk 0:00:31]}  Rd3+ {[%clk 0:00:16]} 53. Kh4 {[%clk 0:00:31]}  Rd2 {[%clk 0:00:17]} 54. Kh3 {[%clk 0:00:29]}  Rd3+ {[%clk 0:00:17]} 55. g3 {[%clk 0:00:30]}  Rd1 {[%clk 0:00:18]} 56. Ra4 {[%clk 0:00:29]}  Rh1+ {[%clk 0:00:18]} 57. Kg2 {[%clk 0:00:29]}  Rb1 {[%clk 0:00:18]} 58. Ra5 {[%clk 0:00:29]}  Rb2+ {[%clk 0:00:18]} 59. Kh3 {[%clk 0:00:29]}  Rb1 {[%clk 0:00:18]} 60. Rc5 {[%clk 0:00:28]}  Rh1+ {[%clk 0:00:17]} 61. Kg2 {[%clk 0:00:29]}  Ra1 {[%clk 0:00:18]} 62. Rc3 {[%clk 0:00:27]}  Ra2+ {[%clk 0:00:17]} 63. Kf3 {[%clk 0:00:28]}  Ra4 {[%clk 0:00:17]} 64. Rc6+ {[%clk 0:00:25]}  f6 {[%clk 0:00:17]} 65. Re6 {[%clk 0:00:23]}  Ra3+ {[%clk 0:00:16]} 66. Re3 {[%clk 0:00:24]}  Rxe3+ {[%clk 0:00:13]} 67. Kxe3 {[%clk 0:00:24]}  Kg5 {[%clk 0:00:14]} 68. Kf3 {[%clk 0:00:24]}  f5 {[%clk 0:00:13]} 69. gxf5 {[%clk 0:00:22]}  Kxf5 {[%clk 0:00:14]} 70. Kf2 {[%clk 0:00:21]}  Kg4 {[%clk 0:00:14]} 71. Kg2 {[%clk 0:00:22]}  Kg5 {[%clk 0:00:14]} 72. Kf3 {[%clk 0:00:22]}  Kf5 {[%clk 0:00:14]} 73. g4+ {[%clk 0:00:23]}  Kg5 {[%clk 0:00:15]} 74. Kg3 {[%clk 0:00:24]}  Kg6 {[%clk 0:00:15]} 75. Kf4 {[%clk 0:00:25]}  Kf6 {[%clk 0:00:16]} 76. Ke4 {[%clk 0:00:26]}  Kg5 {[%clk 0:00:16]} 77. Kf3 {[%clk 0:00:27]}  Kg6 {[%clk 0:00:16]} 78. Kg3 {[%clk 0:00:28]}  Kg5 {[%clk 0:00:16]} 79. Kh3 {[%clk 0:00:28]}  Kg6 {[%clk 0:00:15]} 80. Kh4 {[%clk 0:00:29]}  Kh6 {[%clk 0:00:16]} 81. g5+ {[%clk 0:00:29]}  Kg6 {[%clk 0:00:16]} 82. Kg4 {[%clk 0:00:30]}  Kg7 {[%clk 0:00:17]} 83. Kh4 {[%clk 0:00:31]}  Kg6 {[%clk 0:00:17]} 84. Kg4 {[%clk 0:00:32]}  Kg7 {[%clk 0:00:17]} 85. Kf5 {[%clk 0:00:33]}  Kf7 {[%clk 0:00:17]} 86. Kf4 {[%clk 0:00:33]}  Kg6 {[%clk 0:00:18]} 87. Kg4 {[%clk 0:00:34]} 1/2-1/2


[Site "https://www.chess.com"]

[Event "Titled Tuesday Blitz January 25 2022"]
[White "Havanecz, Bianka"]
[Black "Alavkin, Arseny"]
[WhiteFideId "704814"]
[BlackFideId "4120612"]
[WhiteElo "2347"]
[BlackElo "2391"]
[Result "1-0"]
[Round "03"]
[TimeControl "180+1"]
[Date "2022.01.26"]
[WhiteClock "0:00:36"]
[BlackClock "0:01:03"]

1. d4 {[%clk 0:03:00]}  Nf6 {[%clk 0:02:53]} 2. c4 {[%clk 0:03:01]}  e6 {[%clk 0:02:45]} 3. Nc3 {[%clk 0:03:00]}  Bb4 {[%clk 0:02:45]} 4. Qc2 {[%clk 0:03:00]}  d5 {[%clk 0:02:41]} 5. cxd5 {[%clk 0:03:00]}  exd5 {[%clk 0:02:42]} 6. Bg5 {[%clk 0:02:59]}  h6 {[%clk 0:02:42]} 7. Bh4 {[%clk 0:02:59]}  O-O {[%clk 0:02:41]} 8. e3 {[%clk 0:02:59]}  c6 {[%clk 0:02:42]} 9. Bd3 {[%clk 0:02:58]}  Re8 {[%clk 0:02:41]} 10. Ne2 {[%clk 0:02:58]}  Nbd7 {[%clk 0:02:38]} 11. O-O {[%clk 0:02:58]}  Nf8 {[%clk 0:02:39]} 12. a3 {[%clk 0:02:57]}  Be7 {[%clk 0:02:39]} 13. b4 {[%clk 0:02:57]}  Bg4 {[%clk 0:02:34]} 14. b5 {[%clk 0:02:54]}  Rc8 {[%clk 0:02:34]} 15. Qb3 {[%clk 0:02:51]}  Bxe2 {[%clk 0:02:21]} 16. Bxe2 {[%clk 0:02:46]}  c5 {[%clk 0:02:21]} 17. dxc5 {[%clk 0:02:21]}  Rxc5 {[%clk 0:02:22]} 18. Rfd1 {[%clk 0:02:17]}  g5 {[%clk 0:02:15]} 19. Bg3 {[%clk 0:02:16]}  Ne6 {[%clk 0:02:15]} 20. Bf3 {[%clk 0:02:01]}  d4 {[%clk 0:02:13]} 21. Ne2 {[%clk 0:01:56]}  Qb6 {[%clk 0:02:11]} 22. Nxd4 {[%clk 0:01:54]}  Nxd4 {[%clk 0:02:09]} 23. Rxd4 {[%clk 0:01:53]}  Rxb5 {[%clk 0:02:10]} 24. Qd1 {[%clk 0:01:50]}  Rd8 {[%clk 0:02:06]} 25. Rxd8+ {[%clk 0:01:45]}  Qxd8 {[%clk 0:02:02]} 26. Qxd8+ {[%clk 0:01:42]}  Bxd8 {[%clk 0:01:58]} 27. a4 {[%clk 0:01:43]}  Rb3 {[%clk 0:01:57]} 28. h3 {[%clk 0:01:41]}  Ba5 {[%clk 0:01:53]} 29. Rc1 {[%clk 0:01:36]}  b6 {[%clk 0:01:47]} 30. Rc8+ {[%clk 0:01:35]}  Kg7 {[%clk 0:01:47]} 31. Be5 {[%clk 0:01:35]}  b5 {[%clk 0:01:33]} 32. Rc6 {[%clk 0:01:31]}  Bd8 {[%clk 0:01:33]} 33. Rd6 {[%clk 0:01:10]}  Be7 {[%clk 0:01:31]} 34. Rd7 {[%clk 0:01:10]}  Kf8 {[%clk 0:01:27]} 35. Bxf6 {[%clk 0:01:09]}  Bxf6 {[%clk 0:01:25]} 36. Bd5 {[%clk 0:01:09]}  Rb1+ {[%clk 0:01:24]} 37. Kh2 {[%clk 0:01:08]}  Be5+ {[%clk 0:01:24]} 38. g3 {[%clk 0:01:08]}  b4 {[%clk 0:01:11]} 39. Rxf7+ {[%clk 0:00:59]}  Ke8 {[%clk 0:01:11]} 40. Rxa7 {[%clk 0:00:55]}  b3 {[%clk 0:01:10]} 41. Rb7 {[%clk 0:00:55]}  b2 {[%clk 0:01:10]} 42. Be4 {[%clk 0:00:50]}  Ra1 {[%clk 0:01:09]} 43. Kg2 {[%clk 0:00:50]}  Kf8 {[%clk 0:01:08]} 44. Bc2 {[%clk 0:00:41]}  Rc1 {[%clk 0:01:08]} 45. Bf5 {[%clk 0:00:36]}  Rc2 {[%clk 0:01:03]} 46. Bxc2 {[%clk 0:00:36]} 1-0


[Site "https://www.chess.com"]

[Event "Titled Tuesday Blitz January 25 2022"]
[White "Hoffmann, Asa"]
[Black "Gelman, Alexander"]
[WhiteFideId "2001470"]
[BlackFideId "4118316"]
[WhiteElo "2117"]
[BlackElo "2375"]
[Result "1-0"]
[Round "03"]
[TimeControl "180+1"]
[Date "2022.01.26"]
[WhiteClock "0:01:29"]
[BlackClock "0:00:51"]

1. d4 {[%clk 0:02:57]}  Nf6 {[%clk 0:02:59]} 2. Bg5 {[%clk 0:02:57]}  c5 {[%clk 0:02:59]} 3. d5 {[%clk 0:02:56]}  g6 {[%clk 0:02:59]} 4. Nc3 {[%clk 0:02:55]}  Bg7 {[%clk 0:02:59]} 5. e4 {[%clk 0:02:55]}  d6 {[%clk 0:02:59]} 6. f3 {[%clk 0:02:54]}  a6 {[%clk 0:02:55]} 7. a4 {[%clk 0:02:54]}  h6 {[%clk 0:02:55]} 8. Be3 {[%clk 0:02:54]}  Nbd7 {[%clk 0:02:54]} 9. Qd2 {[%clk 0:02:54]}  h5 {[%clk 0:02:48]} 10. h3 {[%clk 0:02:47]}  h4 {[%clk 0:02:44]} 11. f4 {[%clk 0:02:37]}  Qa5 {[%clk 0:02:43]} 12. Ra3 {[%clk 0:02:30]}  Nh5 {[%clk 0:02:08]} 13. Nf3 {[%clk 0:02:17]}  Ng3 {[%clk 0:02:07]} 14. Rg1 {[%clk 0:02:17]}  Bxc3 {[%clk 0:01:58]} 15. Qxc3 {[%clk 0:02:10]}  Qxc3+ {[%clk 0:01:56]} 16. Rxc3 {[%clk 0:01:57]}  Nxe4 {[%clk 0:01:57]} 17. Rb3 {[%clk 0:01:55]}  f5 {[%clk 0:01:31]} 18. Bd3 {[%clk 0:01:52]}  Ndf6 {[%clk 0:01:31]} 19. c4 {[%clk 0:01:48]}  Kd8 {[%clk 0:01:27]} 20. Ng5 {[%clk 0:01:42]}  Nxg5 {[%clk 0:01:25]} 21. fxg5 {[%clk 0:01:42]}  Nd7 {[%clk 0:01:17]} 22. Bf4 {[%clk 0:01:41]}  Kc7 {[%clk 0:01:17]} 23. Kf2 {[%clk 0:01:36]}  Ne5 {[%clk 0:01:12]} 24. Re1 {[%clk 0:01:33]}  Bd7 {[%clk 0:00:51]} 25. Rxe5 {[%clk 0:01:29]} 1-0


[Site "https://www.chess.com"]

[Event "Titled Tuesday Blitz January 25 2022"]
[White "Jaracz, Pawel"]
[Black "Przybylski, Wojciech"]
[WhiteFideId "1102222"]
[BlackFideId "1117599"]
[WhiteElo "2429"]
[BlackElo "2133"]
[Result "1-0"]
[Round "03"]
[TimeControl "180+1"]
[Date "2022.01.26"]
[WhiteClock "0:00:12"]
[BlackClock "0:00:05"]

1. d4 {[%clk 0:03:00]}  Nf6 {[%clk 0:02:58]} 2. c4 {[%clk 0:03:00]}  e6 {[%clk 0:02:59]} 3. Nf3 {[%clk 0:03:00]}  d5 {[%clk 0:02:56]} 4. g3 {[%clk 0:02:57]}  Bb4+ {[%clk 0:02:54]} 5. Bd2 {[%clk 0:02:57]}  Be7 {[%clk 0:02:54]} 6. Bg2 {[%clk 0:02:56]}  O-O {[%clk 0:02:54]} 7. Qb3 {[%clk 0:02:54]}  Nbd7 {[%clk 0:02:52]} 8. O-O {[%clk 0:02:49]}  Nb6 {[%clk 0:02:48]} 9. c5 {[%clk 0:02:44]}  Nc4 {[%clk 0:02:44]} 10. Bf4 {[%clk 0:02:43]}  b6 {[%clk 0:02:36]} 11. Qc2 {[%clk 0:02:20]}  bxc5 {[%clk 0:02:24]} 12. b3 {[%clk 0:02:09]}  Na5 {[%clk 0:02:09]} 13. dxc5 {[%clk 0:02:08]}  Ne4 {[%clk 0:02:08]} 14. Ne5 {[%clk 0:01:44]}  f6 {[%clk 0:01:53]} 15. Nd3 {[%clk 0:01:43]}  Nc6 {[%clk 0:01:38]} 16. Be3 {[%clk 0:01:21]}  e5 {[%clk 0:01:24]} 17. Rd1 {[%clk 0:01:11]}  Bf5 {[%clk 0:01:23]} 18. b4 {[%clk 0:00:52]}  a5 {[%clk 0:01:12]} 19. b5 {[%clk 0:00:52]}  Nd4 {[%clk 0:01:04]} 20. Bxd4 {[%clk 0:00:51]}  exd4 {[%clk 0:01:05]} 21. f3 {[%clk 0:00:38]}  Nxc5 {[%clk 0:01:03]} 22. f4 {[%clk 0:00:27]}  Ne4 {[%clk 0:00:50]} 23. a4 {[%clk 0:00:25]}  h5 {[%clk 0:00:44]} 24. Nf2 {[%clk 0:00:22]}  Nxg3 {[%clk 0:00:35]} 25. Qa2 {[%clk 0:00:22]}  Kh8 {[%clk 0:00:03]} 26. hxg3 {[%clk 0:00:22]}  Bc5 {[%clk 0:00:02]} 27. Nd3 {[%clk 0:00:21]}  Bb6 {[%clk 0:00:02]} 28. Qxd5 {[%clk 0:00:21]}  Qxd5 {[%clk 0:00:02]} 29. Bxd5 {[%clk 0:00:22]}  Rae8 {[%clk 0:00:02]} 30. Bf3 {[%clk 0:00:22]}  Bg4 {[%clk 0:00:01]} 31. Kf2 {[%clk 0:00:18]}  Kg8 {[%clk 0:00:02]} 32. Nd2 {[%clk 0:00:18]}  Bxf3 {[%clk 0:00:02]} 33. Nxf3 {[%clk 0:00:18]}  Kf7 {[%clk 0:00:02]} 34. f5 {[%clk 0:00:17]}  Rh8 {[%clk 0:00:03]} 35. Rh1 {[%clk 0:00:16]}  Rd8 {[%clk 0:00:02]} 36. Rh4 {[%clk 0:00:16]}  Rd5 {[%clk 0:00:02]} 37. Rf4 {[%clk 0:00:15]}  Rh7 {[%clk 0:00:02]} 38. Rh1 {[%clk 0:00:15]}  Rh8 {[%clk 0:00:02]} 39. g4 {[%clk 0:00:15]}  g5 {[%clk 0:00:02]} 40. fxg6+ {[%clk 0:00:14]}  Kxg6 {[%clk 0:00:03]} 41. gxh5+ {[%clk 0:00:13]}  Rhxh5 {[%clk 0:00:03]} 42. Rxh5 {[%clk 0:00:12]}  Rxh5 {[%clk 0:00:02]} 43. Rg4+ {[%clk 0:00:12]}  Kf7 {[%clk 0:00:03]} 44. Kg2 {[%clk 0:00:12]}  Rh8 {[%clk 0:00:02]} 45. Nf4 {[%clk 0:00:12]}  Re8 {[%clk 0:00:02]} 46. Kf1 {[%clk 0:00:11]}  Rd8 {[%clk 0:00:02]} 47. Rh4 {[%clk 0:00:11]}  Kg7 {[%clk 0:00:02]} 48. Ne6+ {[%clk 0:00:11]}  Kf7 {[%clk 0:00:03]} 49. Nxd8+ {[%clk 0:00:11]}  Ke7 {[%clk 0:00:03]} 50. Rh8 {[%clk 0:00:11]}  Kd6 {[%clk 0:00:03]} 51. Rh5 {[%clk 0:00:10]}  Kd7 {[%clk 0:00:03]} 52. Nc6 {[%clk 0:00:10]}  Kd6 {[%clk 0:00:04]} 53. Ke1 {[%clk 0:00:10]}  f5 {[%clk 0:00:04]} 54. Rxf5 {[%clk 0:00:09]}  Ke6 {[%clk 0:00:04]} 55. Re5+ {[%clk 0:00:09]}  Kd6 {[%clk 0:00:05]} 56. Rh5 {[%clk 0:00:10]}  Ke6 {[%clk 0:00:05]} 57. Kd2 {[%clk 0:00:10]}  Kd6 {[%clk 0:00:06]} 58. Kd3 {[%clk 0:00:11]}  Kd7 {[%clk 0:00:06]} 59. Nfxd4 {[%clk 0:00:11]}  Kc8 {[%clk 0:00:06]} 60. Ne6 {[%clk 0:00:11]}  Kd7 {[%clk 0:00:06]} 61. Nc5+ {[%clk 0:00:11]}  Kd6 {[%clk 0:00:06]} 62. Kc4 {[%clk 0:00:12]}  Ba7 {[%clk 0:00:05]} 63. Rd5# {[%clk 0:00:12]} 1-0


[Site "https://www.chess.com"]

[Event "Titled Tuesday Blitz January 25 2022"]
[White "Jobava, Baadur"]
[Black "Hamitevici, Vladimir"]
[WhiteFideId "13601520"]
[BlackFideId "13902393"]
[WhiteElo "2617"]
[BlackElo "2359"]
[Result "1-0"]
[Round "03"]
[TimeControl "180+1"]
[Date "2022.01.26"]
[WhiteClock "0:01:02"]
[BlackClock "0:00:03"]

1. e4 {[%clk 0:03:00]}  c5 {[%clk 0:02:58]} 2. c3 {[%clk 0:03:00]}  Nf6 {[%clk 0:02:56]} 3. e5 {[%clk 0:02:59]}  Nd5 {[%clk 0:02:56]} 4. d4 {[%clk 0:02:59]}  cxd4 {[%clk 0:02:56]} 5. Nf3 {[%clk 0:02:59]}  d6 {[%clk 0:02:54]} 6. exd6 {[%clk 0:02:59]}  e6 {[%clk 0:02:42]} 7. Nxd4 {[%clk 0:02:54]}  Bxd6 {[%clk 0:02:39]} 8. g3 {[%clk 0:02:54]}  O-O {[%clk 0:02:28]} 9. Bg2 {[%clk 0:02:54]}  a6 {[%clk 0:02:27]} 10. O-O {[%clk 0:02:54]}  Qc7 {[%clk 0:02:20]} 11. Qe2 {[%clk 0:02:48]}  Bd7 {[%clk 0:02:13]} 12. c4 {[%clk 0:02:41]}  Nf6 {[%clk 0:02:06]} 13. Bg5 {[%clk 0:02:37]}  Nc6 {[%clk 0:02:04]} 14. Bxf6 {[%clk 0:02:34]}  gxf6 {[%clk 0:02:05]} 15. Rd1 {[%clk 0:02:31]}  f5 {[%clk 0:01:45]} 16. Nc3 {[%clk 0:02:23]}  Be5 {[%clk 0:01:43]} 17. Nxf5 {[%clk 0:01:52]}  exf5 {[%clk 0:01:27]} 18. Rxd7 {[%clk 0:01:51]}  Qxd7 {[%clk 0:01:22]} 19. Bxc6 {[%clk 0:01:52]}  Qe6 {[%clk 0:01:00]} 20. Bd5 {[%clk 0:01:47]}  Qf6 {[%clk 0:01:00]} 21. Bxb7 {[%clk 0:01:43]}  Bxc3 {[%clk 0:00:58]} 22. Bxa8 {[%clk 0:01:43]}  Bxb2 {[%clk 0:00:52]} 23. Rb1 {[%clk 0:01:43]}  Bd4 {[%clk 0:00:32]} 24. Bd5 {[%clk 0:01:42]}  Kh8 {[%clk 0:00:32]} 25. Qf3 {[%clk 0:01:34]}  f4 {[%clk 0:00:26]} 26. Qxf4 {[%clk 0:01:33]}  Qxf4 {[%clk 0:00:27]} 27. gxf4 {[%clk 0:01:34]}  Kg7 {[%clk 0:00:25]} 28. Rb7 {[%clk 0:01:32]}  Kf6 {[%clk 0:00:24]} 29. Kg2 {[%clk 0:01:32]}  Kg6 {[%clk 0:00:13]} 30. Kf3 {[%clk 0:01:31]}  f6 {[%clk 0:00:14]} 31. Rd7 {[%clk 0:01:27]}  Bc5 {[%clk 0:00:11]} 32. Rc7 {[%clk 0:01:28]}  Bd4 {[%clk 0:00:11]} 33. Be4+ {[%clk 0:01:26]}  f5 {[%clk 0:00:11]} 34. Bd5 {[%clk 0:01:26]}  a5 {[%clk 0:00:08]} 35. a4 {[%clk 0:01:26]}  Rb8 {[%clk 0:00:07]} 36. Rc6+ {[%clk 0:01:20]}  Kg7 {[%clk 0:00:07]} 37. Ra6 {[%clk 0:01:18]}  Rb3+ {[%clk 0:00:07]} 38. Ke2 {[%clk 0:01:18]}  Rb2+ {[%clk 0:00:07]} 39. Kd3 {[%clk 0:01:18]}  Bxf2 {[%clk 0:00:07]} 40. Rxa5 {[%clk 0:01:19]}  Bg1 {[%clk 0:00:06]} 41. c5 {[%clk 0:01:11]}  Rxh2 {[%clk 0:00:02]} 42. c6 {[%clk 0:01:10]}  Rh3+ {[%clk 0:00:02]} 43. Kc4 {[%clk 0:01:09]}  Rh2 {[%clk 0:00:03]} 44. Kb3 {[%clk 0:01:01]}  Rh3+ {[%clk 0:00:03]} 45. Kb4 {[%clk 0:01:02]} 1-0


[Site "https://www.chess.com"]

[Event "Titled Tuesday Blitz January 25 2022"]
[White "Karas, Marek"]
[Black "FGHSMN"]
[WhiteFideId "14928558"]
[WhiteElo "2270"]
[BlackElo "2717"]
[Result "1/2-1/2"]
[Round "03"]
[TimeControl "180+1"]
[Date "2022.01.26"]
[WhiteClock "0:00:03"]
[BlackClock "0:00:04"]

1. d4 {[%clk 0:03:00]}  d5 {[%clk 0:02:58]} 2. c4 {[%clk 0:03:00]}  e6 {[%clk 0:02:59]} 3. Nc3 {[%clk 0:03:00]}  c5 {[%clk 0:02:59]} 4. cxd5 {[%clk 0:02:56]}  exd5 {[%clk 0:02:59]} 5. Nf3 {[%clk 0:02:55]}  Nc6 {[%clk 0:02:59]} 6. e3 {[%clk 0:02:54]}  Nf6 {[%clk 0:02:58]} 7. Bd3 {[%clk 0:02:54]}  cxd4 {[%clk 0:02:57]} 8. Nxd4 {[%clk 0:02:53]}  Nxd4 {[%clk 0:02:54]} 9. exd4 {[%clk 0:02:54]}  Be7 {[%clk 0:02:53]} 10. O-O {[%clk 0:02:52]}  O-O {[%clk 0:02:53]} 11. Bf4 {[%clk 0:02:50]}  Be6 {[%clk 0:02:53]} 12. Qb3 {[%clk 0:02:50]}  Bd6 {[%clk 0:02:42]} 13. Bxd6 {[%clk 0:02:45]}  Qxd6 {[%clk 0:02:43]} 14. Rac1 {[%clk 0:02:45]}  Ng4 {[%clk 0:02:35]} 15. g3 {[%clk 0:02:43]}  Rfc8 {[%clk 0:02:24]} 16. Rfe1 {[%clk 0:02:32]}  h5 {[%clk 0:02:07]} 17. Nb5 {[%clk 0:01:56]}  Qb6 {[%clk 0:02:03]} 18. Rcd1 {[%clk 0:01:16]}  h4 {[%clk 0:01:26]} 19. Nc3 {[%clk 0:00:54]}  hxg3 {[%clk 0:01:24]} 20. hxg3 {[%clk 0:00:50]}  Qd6 {[%clk 0:01:23]} 21. Kg2 {[%clk 0:00:42]}  Qd8 {[%clk 0:01:01]} 22. Qc2 {[%clk 0:00:31]}  Qf6 {[%clk 0:00:48]} 23. Qe2 {[%clk 0:00:27]}  g6 {[%clk 0:00:39]} 24. Qf3 {[%clk 0:00:17]}  Qg5 {[%clk 0:00:35]} 25. Rh1 {[%clk 0:00:15]}  Kg7 {[%clk 0:00:34]} 26. Ne2 {[%clk 0:00:13]}  Nf6 {[%clk 0:00:32]} 27. Qf4 {[%clk 0:00:13]}  Qxf4 {[%clk 0:00:24]} 28. Nxf4 {[%clk 0:00:13]}  Bg4 {[%clk 0:00:25]} 29. Rc1 {[%clk 0:00:12]}  a5 {[%clk 0:00:18]} 30. a3 {[%clk 0:00:12]}  b6 {[%clk 0:00:18]} 31. Rhe1 {[%clk 0:00:12]}  Kf8 {[%clk 0:00:17]} 32. f3 {[%clk 0:00:11]}  Bd7 {[%clk 0:00:17]} 33. Kf2 {[%clk 0:00:11]}  g5 {[%clk 0:00:17]} 34. Ne2 {[%clk 0:00:09]}  Ne8 {[%clk 0:00:17]} 35. Rxc8 {[%clk 0:00:09]}  Rxc8 {[%clk 0:00:17]} 36. Nc3 {[%clk 0:00:08]}  Be6 {[%clk 0:00:16]} 37. Rc1 {[%clk 0:00:07]}  Nd6 {[%clk 0:00:16]} 38. Ne2 {[%clk 0:00:07]}  Rxc1 {[%clk 0:00:15]} 39. Nxc1 {[%clk 0:00:08]}  Bf5 {[%clk 0:00:16]} 40. Ba6 {[%clk 0:00:06]}  Bc2 {[%clk 0:00:14]} 41. Ne2 {[%clk 0:00:06]}  Bb3 {[%clk 0:00:14]} 42. Nc3 {[%clk 0:00:05]}  Nf5 {[%clk 0:00:13]} 43. Bb7 {[%clk 0:00:03]}  Ne7 {[%clk 0:00:11]} 44. Ba6 {[%clk 0:00:03]}  Ke8 {[%clk 0:00:11]} 45. Bd3 {[%clk 0:00:03]}  Kd7 {[%clk 0:00:12]} 46. Ke3 {[%clk 0:00:04]}  Ke6 {[%clk 0:00:11]} 47. g4 {[%clk 0:00:04]}  Nc6 {[%clk 0:00:09]} 48. Bb5 {[%clk 0:00:04]}  Nd8 {[%clk 0:00:08]} 49. Bd3 {[%clk 0:00:04]}  Nb7 {[%clk 0:00:08]} 50. Bf5+ {[%clk 0:00:05]}  Kf6 {[%clk 0:00:08]} 51. Bd3 {[%clk 0:00:05]}  Nd6 {[%clk 0:00:08]} 52. Ne2 {[%clk 0:00:04]}  Bc4 {[%clk 0:00:08]} 53. Nc3 {[%clk 0:00:04]}  Bxd3 {[%clk 0:00:07]} 54. Kxd3 {[%clk 0:00:05]}  Ke6 {[%clk 0:00:08]} 55. b3 {[%clk 0:00:05]}  Ne8 {[%clk 0:00:07]} 56. Ke3 {[%clk 0:00:06]}  Ng7 {[%clk 0:00:07]} 57. Nb5 {[%clk 0:00:06]}  f5 {[%clk 0:00:07]} 58. Nc7+ {[%clk 0:00:06]}  Kd6 {[%clk 0:00:07]} 59. Nb5+ {[%clk 0:00:06]}  Kc6 {[%clk 0:00:08]} 60. a4 {[%clk 0:00:06]}  fxg4 {[%clk 0:00:06]} 61. fxg4 {[%clk 0:00:07]}  Ne8 {[%clk 0:00:07]} 62. Kf3 {[%clk 0:00:06]}  Nf6 {[%clk 0:00:07]} 63. Nc3 {[%clk 0:00:05]}  Kd6 {[%clk 0:00:07]} 64. Nb5+ {[%clk 0:00:02]}  Kd7 {[%clk 0:00:07]} 65. Nc3 {[%clk 0:00:02]}  Ke6 {[%clk 0:00:07]} 66. Kg3 {[%clk 0:00:02]}  Ne4+ {[%clk 0:00:07]} 67. Nxe4 {[%clk 0:00:02]}  dxe4 {[%clk 0:00:08]} 68. Kf2 {[%clk 0:00:02]}  Kd6 {[%clk 0:00:09]} 69. Ke2 {[%clk 0:00:02]}  Kc6 {[%clk 0:00:08]} 70. Kd2 {[%clk 0:00:02]}  Kd6 {[%clk 0:00:08]} 71. Ke2 {[%clk 0:00:03]}  Kc6 {[%clk 0:00:08]} 72. Kd2 {[%clk 0:00:03]}  Kd6 {[%clk 0:00:04]} 73. Ke2 {[%clk 0:00:03]} 1/2-1/2


[Site "https://www.chess.com"]